bitfinex/quotes_SOLUSD_20241121
["timestamp","ask_amount","ask_price","bid_price","bid_amount"]
[1732226782416,23.776884,254.0,253.99,2.5]
[1732226782609,23.776884,254.0,253.93,7.78753741]
[1732226782610,2.5,253.95,253.93,7.78753741]
[1732226782837,2.5,253.95,253.92,7.78753741]
[1732226783036,2.5,253.95,253.91,7.78753741]
[1732226783720,23.776884,254.0,253.78,4.06359235]
[1732226783721,2.5,253.89,253.78,4.06359235]
[1732226783939,2.5,253.89,253.85,7.78753741]
[1732226784122,2.5,253.9,253.87,7.78753741]
[1732226784320,2.5,253.92,253.88,7.78753741]
[1732226787042,2.5,253.92,253.87,7.78753741]
[1732226788218,2.5,253.91,253.84,20.0]
[1732226788422,2.5,253.91,253.86,7.78753741]
[1732226790640,2.5,253.91,253.87,7.78753741]
[1732226794827,2.5,253.91,253.89,7.78753741]
[1732226795027,2.5,253.91,253.88,7.78753741]
[1732226795241,2.5,253.91,253.89,7.78753741]
[1732226795740,2.5,253.91,253.88,7.78753741]
[1732226797351,2.5,253.91,253.89,7.78753741]
[1732226797650,2.5,253.91,253.88,7.78753741]
[1732226798129,2.5,253.91,253.89,7.78753741]
[1732226798327,2.5,253.91,253.83,16.028]
[1732226798529,2.5,253.89,253.87,7.78753741]
[1732226799345,2.5,253.91,253.87,7.78753741]
[1732226799553,2.5,253.98,253.88,7.78753741]
[1732226799742,2.5,254.04,253.97,7.78753741]
[1732226800051,2.5,254.13,254.03,7.78753741]
[1732226800255,6.1827,254.15,253.95,4.06359235]
[1732226800256,2.5,254.15,254.09,7.78753741]
[1732226800555,2.5,254.11,254.1,7.78753741]
[1732226800931,2.5,254.11,254.09,7.78753741]
[1732226801133,2.5,254.15,254.1,7.78753741]
[1732226801451,2.5,254.19,254.1,7.78753741]
[1732226801452,2.5,254.12,254.1,7.78753741]
[1732226801838,2.5,254.07,253.95,20.0]
[1732226802045,2.5,254.07,254.02,7.78753741]
[1732226802358,2.5,254.08,254.02,7.78753741]
[1732226802532,2.5,254.08,254.04,7.78753741]
[1732226802732,2.5,254.08,254.04,12.0646119]
[1732226807549,2.5,253.98,253.87,16.0693]
[1732226807856,2.5,253.99,253.93,12.0646119]
[1732226808227,2.5,254.0,253.93,12.0646119]
[1732226808430,2.5,253.99,253.95,12.0646119]
[1732226808831,5.0,254.02,253.95,12.0646119]
[1732226809245,2.5,254.0,253.95,12.0646119]
[1732226811352,2.5,254.04,253.97,12.0646119]
[1732226811651,2.5,254.03,253.99,12.0646119]
[1732226811859,14.29559495,254.57,254.27,2.5]
[1732226812094,2.91505454,254.56,254.52,12.0646119]
[1732226812247,3.24,254.62,254.55,12.0646119]
[1732226812555,3.24,254.62,254.41,43.776884]
[1732226812740,12.0646119,254.61,254.48,12.0646119]
[1732226812939,12.0646119,254.59,254.48,12.0646119]
[1732226813134,12.0646119,254.6,254.48,12.0646119]
[1732226813435,12.0646119,254.54,254.44,12.0646119]
[1732226813644,5.00313826,254.52,254.42,12.0646119]
[1732226813947,12.0646119,254.53,254.41,12.0646119]
[1732226814538,12.0646119,254.51,254.41,12.0646119]
[1732226814738,19.24963164,254.47,254.37,20.0]
[1732226814951,19.24963164,254.45,254.37,20.0]
[1732226815539,23.776884,254.44,254.37,20.0]
[1732226815749,20.0,254.57,254.43,19.24963164]
[1732226815944,19.24963164,254.51,254.41,19.24963164]
[1732226816263,19.24963164,254.48,254.37,39.24963164]
[1732226816574,19.24963164,254.46,254.37,39.24963164]
[1732226816738,19.24963164,254.48,254.39,19.24963164]
[1732226816939,19.24963164,254.5,254.39,19.24963164]
[1732226817166,19.24963164,254.45,254.2,2.5]
[1732226817372,23.776884,254.42,254.32,19.24963164]
[1732226817551,19.24963164,254.41,254.32,19.24963164]
[1732226818658,23.776884,254.38,254.28,19.24963164]
[1732226819367,23.776884,254.38,254.3,19.24963164]
[1732226822045,2.5,254.47,254.29,20.0]
[1732226822046,23.776884,254.34,254.29,20.0]
[1732226822549,23.776884,254.34,254.25,19.24963164]
[1732226822758,23.776884,254.32,254.25,19.24963164]
[1732226825172,23.776884,254.34,254.25,19.24963164]
[1732226825848,23.776884,254.34,254.27,19.24963164]
[1732226827578,160.6,254.53,254.34,20.0]
[1732226827755,19.24963164,254.51,254.44,19.24963164]
[1732226827957,19.24963164,254.47,254.4,19.24963164]
[1732226828172,19.24963164,254.45,254.38,19.24963164]
[1732226828553,19.24963164,254.41,254.34,19.24963164]
[1732226828876,43.02651564,254.4,254.33,19.24963164]
[1732226829980,23.776884,254.36,254.29,19.24963164]
[1732226830161,19.24963164,254.37,254.29,19.24963164]
[1732226830364,20.0,254.4,254.35,19.24963164]
[1732226830675,20.0,254.42,254.35,19.24963164]
[1732226831455,20.0,254.42,254.2,2.5]
[1732226831456,23.776884,254.41,254.33,19.24963164]
[1732226832281,19.24963164,254.48,254.39,19.24963164]
[1732226832585,19.24963164,254.48,254.28,19.24963164]
[1732226832586,19.24963164,254.46,254.37,19.24963164]
[1732226833106,19.24963164,254.46,254.39,19.24963164]
[1732226833579,23.776884,254.45,254.37,19.24963164]
[1732226833992,23.776884,254.43,254.29,20.0]
[1732226834179,23.776884,254.43,254.38,19.24963164]
[1732226834491,23.776884,254.45,254.38,19.24963164]
[1732226834781,23.776884,254.45,254.36,19.24963164]
[1732226834989,19.24963164,254.44,254.36,19.24963164]
[1732226835163,23.776884,254.43,254.36,19.24963164]
[1732226836356,2.5,254.19,253.91,48.62900967]
[1732226836589,2.046,254.29,253.76,2.5]
[1732226836590,19.24963164,254.06,253.93,19.24963164]
[1732226836759,19.24963164,254.06,253.76,19.24963164]
[1732226836760,23.776884,254.17,254.02,19.24963164]
[1732226836966,23.776884,254.14,254.04,19.24963164]
[1732226837166,23.776884,254.12,253.85,2.48]
[1732226837373,23.776884,254.03,253.92,19.24963164]
[1732226837575,18.60716606,254.02,253.92,19.24963164]
[1732226837881,106.32666326,254.01,253.92,19.24963164]
[1732226838082,79.74499744,254.0,253.94,19.24963164]
[1732226838260,18.60716606,253.99,253.95,19.24963164]
[1732226838467,69.11233111,253.98,253.95,19.24963164]
[1732226838667,101.0103301,253.97,253.95,19.24963164]
[1732226838871,37.21433213,253.96,253.95,19.24963164]
[1732226839173,138.22466224,253.96,253.95,7.34576751]
[1732226839382,19.28529076,253.94,253.76,42.81963164]
[1732226839565,49.71039998,253.79,253.76,43.41027494]
[1732226839764,96.53893994,253.91,253.78,62.1629379]
[1732226839962,95.8029897,253.9,253.89,38.49926328]
[1732226840287,96.53893994,253.91,253.89,38.49926328]
[1732226840888,96.53893994,253.91,253.9,20.0]
[1732226841094,96.41353994,253.91,253.9,20.0]
[1732226841397,91.75013994,253.91,253.9,54.47426869]
[1732226841686,91.75013994,253.91,253.9,78.25115269]
[1732226841978,21.74963164,254.08,253.97,20.0]
[1732226842180,21.74963164,254.08,254.0,20.0]
[1732226842380,2.5,254.06,254.01,37.00359681]
[1732226842586,2.5,254.08,254.01,104.57964985]
[1732226842763,21.74963164,254.08,254.01,136.29701854]
[1732226843180,21.74963164,254.08,254.01,181.34254346]
[1732226843862,19.24963164,254.12,254.01,181.34254346]
[1732226844389,120.65779313,254.13,254.01,181.34254346]
[1732226844572,108.46661382,254.02,254.01,224.3690591]
[1732226844766,103.71121382,254.02,254.01,439.93134025]
[1732226844960,19.46560195,254.02,254.01,439.93134025]
[1732226846389,115.37260773,254.13,254.12,39.24963164]
[1732226847179,115.37260773,254.13,254.12,110.72519714]
[1732226847374,115.37260773,254.13,254.12,153.01502206]
[1732226847375,105.55349022,254.13,254.12,153.01502206]
[1732226847684,105.42809022,254.13,254.12,153.01502206]
[1732226847882,105.42809022,254.13,254.12,200.5910751]
[1732226848563,23.53357778,254.13,254.12,243.61759074]
[1732226848764,14.25897778,254.13,254.12,406.31759074]
[1732226848982,9.54647778,254.13,254.12,406.31759074]
[1732226849275,120.65779313,254.27,254.13,43.776884]
[1732226849486,120.65779313,254.27,254.26,19.24963164]
[1732226849795,120.65779313,254.27,254.26,70.96700033]
[1732226850293,19.24963164,254.39,254.27,20.0]
[1732226850589,19.24963164,254.37,254.3,20.0]
[1732226850767,19.24963164,254.34,254.3,20.0]
[1732226850965,160.01296094,254.5,254.31,68.7209655]
[1732226851181,20.0,254.49,254.32,9.6334]
[1732226851382,19.24963164,254.38,254.33,62.28982492]
[1732226851586,19.24963164,254.38,254.34,68.7209655]
[1732226852291,19.24963164,254.39,254.35,131.01079042]
[1732226852799,19.24963164,254.39,254.36,79.29342173]
[1732226853175,19.24963164,254.39,254.37,37.00359681]
[1732226853370,43.02651564,254.39,254.38,74.00719361]
[1732226853571,43.02651564,254.39,254.38,111.01079042]
[1732226853782,43.02651564,254.39,254.38,163.87307157]
[1732226854192,19.24963164,254.39,254.38,163.87307157]
[1732226854497,19.24963164,254.39,254.38,65.27011274]
[1732226854674,19.24963164,254.39,254.38,38.11281274]
[1732226855275,23.18053164,254.39,254.38,38.11281274]
[1732226855671,23.18053164,254.39,254.38,18.71471274]
[1732226856071,25.68053164,254.39,254.38,18.71471274]
[1732226856301,69.45741564,254.39,254.38,70.47394934]
[1732226856673,46.95741564,254.39,254.38,70.47394934]
[1732226857005,46.95741564,254.39,254.38,60.3242366]
[1732226857190,184.01708329,254.39,254.38,60.3242366]
[1732226857375,23.776884,254.38,254.36,120.57850272]
[1732226857699,80.49580309,254.37,254.36,120.57850272]
[1732226857904,60.65011909,254.37,254.36,120.57850272]
[1732226858079,84.42700309,254.37,254.36,120.57850272]
[1732226858888,111.19077985,254.37,254.36,120.57850272]
[1732226859404,84.42700309,254.37,254.36,120.57850272]
[1732226859702,117.45168759,254.37,254.36,120.57850272]
[1732226860301,98.71704386,254.37,254.33,2.7522]
[1732226860597,19.24963164,254.35,254.29,6.8817]
[1732226860783,36.4541128,254.33,254.29,6.8817]
[1732226860976,55.18875652,254.32,254.29,6.8817]
[1732226861301,18.75181039,254.31,254.29,6.8817]
[1732226861604,8.02913302,254.3,254.29,6.8817]
[1732226861777,18.75353674,254.3,254.29,6.8817]
[1732226862087,18.75385945,254.3,254.29,6.8817]
[1732226862286,44.48324582,254.3,254.29,6.8817]
[1732226862483,8.02913302,254.3,254.29,6.8817]
[1732226863492,18.76940936,254.3,254.24,6.8832]
[1732226863700,19.24963164,254.27,254.24,6.8832]
[1732226863882,8.02913302,254.26,254.24,6.8832]
[1732226864200,19.84634124,254.24,254.19,12.17218244]
[1732226864505,6.08991404,254.24,254.19,19.05678244]
[1732226864704,6.08991404,254.23,254.21,20.0]
[1732226864878,6.08991404,254.23,254.2,20.0]
[1732226865078,6.08991404,254.22,254.2,20.0]
[1732226865279,19.24963164,254.27,254.19,20.0]
[1732226865584,19.24963164,254.27,254.18,20.0]
[1732226865885,19.24963164,254.25,254.15,19.24963164]
[1732226866295,19.24963164,254.23,254.13,33.02203164]
[1732226867303,19.24963164,254.21,254.13,33.02203164]
[1732226867600,19.24963164,254.21,254.13,42.66263164]
[1732226867994,19.24963164,254.21,254.14,20.0]
[1732226868905,19.24963164,254.21,254.15,9.6398]
[1732226869206,19.24963164,254.21,254.16,20.0]
[1732226869375,19.24963164,254.23,254.16,20.0]
[1732226870081,19.24963164,254.27,254.18,20.0]
[1732226870911,19.24963164,254.27,254.19,9.6384]
[1732226871103,19.24963164,254.27,254.2,20.0]
[1732226871994,19.24963164,254.27,254.21,9.6376]
[1732226872786,19.24963164,254.25,254.21,9.6376]
[1732226873308,19.24963164,254.27,254.21,9.6376]
[1732226875581,23.776884,254.36,254.21,9.6376]
[1732226875582,19.24963164,254.25,254.21,9.6376]
[1732226876506,19.24963164,254.23,254.21,9.6376]
[1732226876682,19.24963164,254.23,254.15,13.7713]
[1732226876885,19.24963164,254.23,254.16,20.0]
[1732226877311,19.24963164,254.21,254.16,20.0]
[1732226877607,19.24963164,254.21,254.15,13.7713]
[1732226878914,13.0001,254.31,254.15,13.7713]
[1732226878915,19.24963164,254.23,254.15,13.7713]
[1732226882104,19.24963164,254.21,254.14,9.6402]
[1732226883007,19.24963164,254.23,254.14,9.6402]
[1732226883815,19.24963164,254.25,254.15,39.24963164]
[1732226883993,19.24963164,254.25,254.16,9.6395]
[1732226884618,19.24963164,254.27,254.19,19.24963164]
[1732226885592,19.24963164,254.23,254.2,6.8843]
[1732226885796,19.24963164,254.21,254.13,2.7544]
[1732226886608,19.24963164,254.21,254.13,22.00403164]
[1732226886806,19.24963164,254.21,254.15,6.8854]
[1732226888496,19.24963164,254.25,254.16,20.0]
[1732226888811,19.24963164,254.25,254.17,9.6391]
[1732226889394,19.24963164,254.27,254.2,20.0]
[1732226890511,19.24963164,254.27,254.21,9.6376]
[1732226892115,160.6,254.42,254.25,2.5]
[1732226892418,19.24963164,254.26,254.21,9.384]
[1732226892720,19.24963164,254.22,254.17,2.5]
[1732226892892,19.24963164,254.2,254.17,5.254]
[1732226893294,19.24963164,254.2,254.16,6.8852]
[1732226893497,19.24963164,254.18,254.16,6.8852]
[1732226893902,19.24963164,254.18,254.16,9.6393]
[1732226894514,19.24963164,254.18,254.07,13.7755]
[1732226894721,3.9343,254.18,254.11,6.8867]
[1732226895597,3.9334,254.23,254.08,2.755]
[1732226895799,19.24963164,254.11,254.09,2.5]
[1732226897020,19.24963164,254.11,254.1,2.7548]
[1732226897620,3.9343,254.18,254.1,5.2548]
[1732226897823,19.24963164,254.14,254.1,12.1418]
[1732226898023,19.24963164,254.18,254.14,2.5]
[1732226898219,19.24963164,254.18,254.16,2.11]
[1732226898729,19.24963164,254.2,254.16,2.11]
[1732226899119,19.24963164,254.2,254.16,4.864]
[1732226903208,19.24963164,254.22,254.18,2.11]
[1732226904437,19.24963164,254.22,254.18,4.8638]
[1732226909624,19.24963164,254.22,254.18,11.7486]
[1732226910713,12.05558637,254.22,254.18,11.7486]
[1732226911114,12.05558637,254.22,254.2,2.11]
[1732226914535,12.05558637,254.26,254.22,2.11]
[1732226915444,12.05558637,254.24,254.22,2.11]
[1732226915618,12.05558637,254.24,254.22,4.8635]
[1732226915818,12.05558637,254.24,254.22,2.7535]
[1732226920040,15.98898637,254.24,254.15,6.8855]
[1732226920247,15.98898637,254.24,254.15,9.6397]
[1732226920248,12.05558637,254.16,254.15,9.6397]
[1732226921148,12.05558637,254.16,254.15,6.8855]
[1732226923149,12.05558637,254.17,254.15,9.6397]
[1732226923954,12.05558637,254.17,254.13,2.7544]
[1732226924148,12.05558637,254.14,254.13,2.7544]
[1732226926325,12.05558637,254.14,254.13,4.8644]
[1732226926749,12.05558637,254.14,254.13,2.7544]
[1732226928149,12.05558637,254.16,254.14,2.11]
[1732226929035,12.05558637,254.16,254.14,4.61]
[1732226929348,12.05558637,254.18,254.17,2.11]
[1732226930047,12.05558637,254.2,254.17,4.864]
[1732226931230,4.28665103,254.31,254.17,4.864]
[1732226931231,160.6,254.44,254.27,2.11]
[1732226931443,12.05558637,254.33,254.27,4.61]
[1732226931625,2.93413922,254.32,254.27,4.61]
[1732226931832,2.93413922,254.32,254.3,5.2525]
[1732226932044,2.93413922,254.32,254.3,9.6341]
[1732226932244,12.05558637,254.31,254.27,2.11]
[1732226932545,9.8257,254.44,254.27,4.61]
[1732226932737,12.05558637,254.31,254.26,9.6357]
[1732226933132,12.05558637,254.31,254.27,2.11]
[1732226935056,12.05558637,254.31,254.28,2.7528]
[1732226935641,12.05558637,254.31,254.28,5.2528]
[1732226935945,12.05558637,254.31,254.28,2.7528]
[1732226936532,12.05558637,254.29,254.26,9.6357]
[1732226936745,12.05558637,254.27,254.26,9.6357]
[1732226937868,12.05558637,254.27,254.26,12.1357]
[1732226938058,12.05558637,254.29,254.26,12.1357]
[1732226938251,12.05558637,254.29,254.27,2.11]
[1732226938955,12.05558637,254.29,254.27,4.8629]
[1732226940570,12.05558637,254.29,254.26,6.8827]
[1732226940872,3.9321,254.32,254.26,6.8827]
[1732226941039,12.05558637,254.28,254.26,9.6357]
[1732226941960,12.05558637,254.28,254.26,6.8827]
[1732226942338,28.04387274,254.28,254.21,9.6374]
[1732226942549,12.05558637,254.22,254.21,9.6374]
[1732226945654,12.05558637,254.24,254.21,11.7474]
[1732226946563,12.05558637,254.24,254.21,9.6374]
[1732226948039,12.05558637,254.24,254.22,2.11]
[1732226948939,12.05558637,254.24,254.22,4.8635]
[1732226949874,12.05558637,254.24,254.22,2.7535]
[1732226953662,12.05558637,254.24,254.19,34.2026]
[1732226953869,3.933,254.26,254.19,34.2026]
[1732226953870,12.05558637,254.22,254.19,36.9564]
[1732226954574,12.05558637,254.22,254.19,43.841]
[1732226954745,7.71539668,254.22,254.19,43.841]
[1732226955654,7.71539668,254.22,254.19,46.341]
[1732226955860,7.71539668,254.22,254.19,43.841]
[1732226956574,7.71539668,254.24,254.19,46.341]
[1732226956881,7.71539668,254.22,254.19,46.341]
[1732226957173,23.776884,254.31,254.19,46.341]
[1732226957353,7.71539668,254.24,254.19,46.341]
[1732226957777,7.71539668,254.22,254.19,46.341]
[1732226958446,7.71539668,254.22,254.19,43.841]
[1732226958647,7.71539668,254.22,254.17,2.5]
[1732226958648,7.71539668,254.22,254.17,4.8639]
[1732226959265,7.71539668,254.22,254.17,11.749]
[1732226959955,30.86158672,254.28,254.17,11.749]
[1732226960149,7.71539668,254.22,254.2,2.11]
[1732226962473,7.71539668,254.22,254.19,2.7538]
[1732226963059,7.71539668,254.22,254.2,2.11]
[1732226963879,3.9323,254.3,254.2,2.11]
[1732226964091,7.71539668,254.23,254.2,2.11]
[1732226964570,7.71539668,254.21,254.2,2.11]
[1732226964779,3.9323,254.3,254.2,2.11]
[1732226964980,2.93351094,254.29,254.26,2.5]
[1732226965150,7.71539668,254.29,254.27,2.11]
[1732226965762,7.71539668,254.29,254.25,2.11]
[1732226965972,7.71539668,254.26,254.25,2.11]
[1732226966574,7.71539668,254.28,254.25,2.11]
[1732226968381,7.71539668,254.28,254.24,2.7532]
[1732226968568,7.71539668,254.28,254.25,2.11]
[1732226969979,7.71539668,254.28,254.25,4.8631]
[1732226972383,24.1394,254.4,254.25,4.8631]
[1732226972384,7.71539668,254.35,254.3,4.61]
[1732226972567,7.71539668,254.36,254.33,2.11]
[1732226973069,7.71539668,254.37,254.33,2.11]
[1732226973268,7.71539668,254.37,254.35,2.11]
[1732226973469,23.776884,254.46,254.33,2.11]
[1732226973675,7.71539668,254.38,254.37,2.11]
[1732226973876,3.9297,254.47,254.37,2.11]
[1732226974077,7.71539668,254.4,254.37,4.61]
[1732226974372,7.71539668,254.4,254.37,2.11]
[1732226974586,7.71539668,254.4,254.38,2.7517]
[1732226974788,7.71539668,254.4,254.33,2.11]
[1732226975003,7.71539668,254.34,254.33,4.8622]
[1732226975490,7.71539668,254.36,254.34,2.5]
[1732226976577,3.9294,254.49,254.35,9.6323]
[1732226976895,67.85248672,254.54,254.35,9.6323]
[1732226976896,2.92981368,254.48,254.39,33.0738]
[1732226977104,7.71539668,254.51,254.43,2.11]
[1732226977389,2.92951954,254.5,254.46,2.5]
[1732226977694,7.71539668,254.48,254.45,2.11]
[1732226977893,7.71539668,254.48,254.44,2.5]
[1732226978202,7.71539668,254.48,254.44,5.2511]
[1732226978390,7.71539668,254.46,254.45,2.5]
[1732226978569,34.79028672,254.54,254.43,6.8779]
[1732226978773,7.71539668,254.44,254.39,38.3254]
[1732226979084,7.71539668,254.4,254.39,38.3254]
[1732226980376,7.71539668,254.4,254.39,33.0738]
[1732226980692,7.71539668,254.4,254.35,2.752]
[1732226980893,7.71539668,254.36,254.32,41.2556]
[1732226981070,30.86158672,254.41,254.33,2.5]
[1732226981071,7.71539668,254.34,254.33,2.5]
[1732226981274,3.9304,254.43,254.35,2.5]
[1732226981494,7.71539668,254.36,254.35,2.5]
[1732226982100,7.71539668,254.36,254.35,5.2521]
[1732226982279,23.776884,254.47,254.35,7.3621]
[1732226982475,7.71539668,254.37,254.35,11.7423]
[1732226983000,7.71539668,254.37,254.33,2.7522]
[1732226983222,7.71539668,254.34,254.33,4.8622]
[1732226983702,30.86158672,254.41,254.32,4.61]
[1732226983929,7.71539668,254.34,254.32,4.61]
[1732226984446,7.71539668,254.34,254.33,2.7523]
[1732226984623,27.706884,254.45,254.35,2.11]
[1732226984922,3.93,254.45,254.35,2.11]
[1732226985225,3.93,254.45,254.37,2.11]
[1732226985621,7.71539668,254.38,254.37,2.11]
[1732226988137,7.71539668,254.38,254.35,4.862]
[1732226988323,7.71539668,254.36,254.33,6.8808]
[1732226988546,7.71539668,254.34,254.33,6.8808]
[1732226988727,7.71539668,254.34,254.31,2.11]
[1732226988941,7.71539668,254.32,254.31,2.11]
[1732226989321,7.71539668,254.32,254.3,2.7526]
[1732226989534,7.71539668,254.32,254.29,2.11]
[1732226989827,7.71539668,254.3,254.29,4.8627]
[1732226991736,7.71539668,254.32,254.29,4.8627]
[1732226992442,3.9308,254.4,254.3,2.5]
[1732226992642,7.71539668,254.33,254.31,2.11]
[1732226992930,7.71539668,254.33,254.3,2.5]
[1732226993339,3.93,254.45,254.34,2.5]
[1732226993641,7.71539668,254.37,254.34,2.5]
[1732226993860,7.71539668,254.35,254.34,2.5]
[1732226994721,7.71539668,254.35,254.32,5.2523]
[1732226995154,7.71539668,254.35,254.31,2.11]
[1732226995437,7.71539668,254.33,254.31,2.11]
[1732226995834,7.71539668,254.33,254.32,2.5]
[1732226996840,3.9311,254.39,254.32,5.2524]
[1732226997021,7.71539668,254.35,254.33,2.11]
[1732226997217,160.6,254.52,254.32,5.2524]
[1732226997218,3.9297,254.47,254.4,2.5]
[1732226997472,7.71539668,254.43,254.4,2.5]
[1732226998114,7.71539668,254.43,254.41,2.11]
[1732226999040,7.71539668,254.43,254.34,2.5]
[1732226999345,7.71539668,254.36,254.34,2.5]
[1732226999848,7.71539668,254.36,254.34,2.11]
[1732227000204,7.71539668,254.36,254.33,2.7522]
[1732227001038,3.9308,254.4,254.33,2.7522]
[1732227001331,7.71539668,254.35,254.33,2.7522]
[1732227002627,7.71539668,254.35,254.34,4.61]
[1732227005603,7.71539668,254.35,254.34,2.5]
[1732227006003,23.776884,254.47,254.37,2.5]
[1732227006206,7.71539668,254.44,254.39,2.5]
[1732227006510,7.71539668,254.42,254.39,2.5]
[1732227006704,7.71539668,254.42,254.39,4.61]
[1732227007505,7.71539668,254.4,254.38,2.11]
[1732227008307,7.71539668,254.4,254.34,6.8805]
[1732227008613,7.71539668,254.35,254.34,8.9905]
[1732227009189,7.71539668,254.38,254.37,2.11]
[1732227009800,7.71539668,254.38,254.34,12.1327]
[1732227009995,7.71539668,254.38,254.37,2.11]
[1732227010306,7.71539668,254.38,254.3,2.5]
[1732227010307,11.64649668,254.38,254.3,2.5]
[1732227010488,7.71539668,254.32,254.31,2.11]
[1732227011898,7.71539668,254.32,254.31,4.61]
[1732227013504,7.71539668,254.32,254.28,6.8819]
[1732227013701,7.71539668,254.29,254.24,5.2532]
[1732227013891,7.71539668,254.26,254.25,2.11]
[1732227014795,7.71539668,254.28,254.25,4.8631]
[1732227015115,7.71539668,254.26,254.25,4.8631]
[1732227016306,7.71539668,254.26,254.2,2.7536]
[1732227016509,7.71539668,254.22,254.2,2.7536]
[1732227017090,7.71539668,254.22,254.21,2.11]
[1732227017491,7.71539668,254.22,254.21,4.61]
[1732227018015,7.71539668,254.22,254.21,2.11]
[1732227018191,7.71539668,254.22,254.21,4.61]
[1732227019111,11.64899668,254.22,254.13,6.886]
[1732227019300,7.71539668,254.14,254.11,2.7546]
[1732227019503,7.71539668,254.12,254.11,2.7546]
[1732227019913,3.9336,254.22,254.13,4.61]
[1732227020215,7.71539668,254.14,254.13,2.11]
[1732227021196,7.71539668,254.14,254.11,6.8867]
[1732227021504,7.71539668,254.12,254.11,6.8867]
[1732227022013,7.71539668,254.12,254.07,5.255]
[1732227022206,3.9343,254.17,254.07,5.255]
[1732227022207,7.71539668,254.1,254.07,5.255]
[1732227023101,7.71539668,254.1,254.08,2.11]
[1732227023808,7.71539668,254.1,254.07,5.255]
[1732227023809,7.71539668,254.1,254.07,7.365]
[1732227024019,7.71539668,254.1,254.08,2.11]
[1732227024901,7.71539668,254.12,254.09,2.5]
[1732227025102,7.71539668,254.12,254.1,2.11]
[1732227027221,3.9336,254.22,254.14,4.61]
[1732227027413,7.71539668,254.18,254.14,4.61]
[1732227028624,12.06042418,254.18,254.14,4.61]
[1732227029098,12.06042418,254.21,254.16,2.11]
[1732227029304,12.06042418,254.21,254.16,4.61]
[1732227029813,12.06042418,254.21,254.16,2.11]
[1732227030119,12.06042418,254.19,254.16,2.11]
[1732227030520,12.06042418,254.17,254.12,7.3645]
[1732227030728,12.06042418,254.15,254.1,2.11]
[1732227031022,3.9341,254.19,254.1,7.3647]
[1732227031023,12.06042418,254.13,254.1,7.3647]
[1732227031629,12.06042418,254.13,254.12,2.11]
[1732227031925,12.06042418,254.15,254.12,2.11]
[1732227032130,12.06042418,254.15,254.1,5.2547]
[1732227032306,12.06042418,254.15,254.12,2.11]
[1732227035027,12.06042418,254.15,254.1,7.3647]
[1732227036611,12.06042418,254.15,254.12,2.11]
[1732227037442,12.06042418,254.15,254.1,7.3647]
[1732227037614,12.06042418,254.15,254.12,2.11]
[1732227038226,12.06042418,254.15,254.1,4.61]
[1732227038428,12.06042418,254.15,254.1,7.3647]
[1732227039619,12.06042418,254.21,254.16,2.11]
[1732227043239,12.06042418,254.28,254.21,4.61]
[1732227043441,12.06042418,254.28,254.23,2.11]
[1732227044560,15.99312418,254.28,254.23,2.11]
[1732227045052,3.9327,254.28,254.23,2.11]
[1732227045254,12.06042418,254.29,254.23,7.3633]
[1732227045462,15.99282418,254.3,254.23,7.3633]
[1732227046672,12.06042418,254.28,254.23,4.61]
[1732227047262,12.06042418,254.28,254.23,2.11]
[1732227047451,12.06042418,254.24,254.21,4.61]
[1732227047693,12.06042418,254.24,254.23,2.11]
[1732227048080,12.06042418,254.26,254.23,4.61]
[1732227048279,12.06042418,254.26,254.22,2.11]
[1732227048481,12.06042418,254.26,254.21,5.2536]
[1732227048659,12.06042418,254.26,254.22,2.11]
[1732227050668,7.7139829,254.26,254.22,2.11]
[1732227052190,11.6468829,254.26,254.22,2.11]
[1732227053083,7.7139829,254.26,254.22,2.11]
[1732227053591,7.7139829,254.26,254.2,11.748]
[1732227053770,11.6468829,254.26,254.2,11.748]
[1732227054986,7.7139829,254.26,254.2,11.748]
[1732227058982,7.7139829,254.24,254.2,11.748]
[1732227059968,7.7139829,254.23,254.2,11.748]